[Event "Early-Titled-Tuesday-Blitz-September-05-2023"]
[Site "Chess.com"]
[Date "2023.09.05"]
[Round "9"]
[White "Zarinur"]
[Black "DopplerCharlotteDeWitte"]
[Result "0-1"]
[WhiteElo "2506"]
[BlackElo "2712"]
[TimeControl "180+1"]
[EndTime "9:42:07 PDT"]
[Termination "DopplerCharlotteDeWitte won by checkmate"]

1. e4 {[%clk 0:03:00]} 1... c5 {[%clk 0:02:59.5]} 2. Nf3 {[%clk 0:02:50]} 2...
e6 {[%clk 0:02:59.4]} 3. g3 {[%clk 0:02:35.1]} 3... d5 {[%clk 0:02:58.8]} 4.
exd5 {[%clk 0:02:31.2]} 4... exd5 {[%clk 0:02:59.7]} 5. d4 {[%clk 0:02:14.7]}
5... cxd4 {[%clk 0:02:59.8]} 6. Nxd4 {[%clk 0:01:57.2]} 6... Nc6 {[%clk
0:02:59.1]} 7. Bg2 {[%clk 0:01:54.6]} 7... Bc5 {[%clk 0:02:52.7]} 8. Be3 {[%clk
0:01:42.7]} 8... Nxd4 {[%clk 0:02:27.4]} 9. Bxd4 {[%clk 0:01:38.4]} 9... Qe7+
{[%clk 0:02:24]} 10. Kf1 {[%clk 0:01:28.3]} 10... Nf6 {[%clk 0:02:23.7]} 11. Nc3
{[%clk 0:01:23.5]} 11... Be6 {[%clk 0:02:04.6]} 12. Qd3 {[%clk 0:01:13.1]} 12...
O-O {[%clk 0:02:01.3]} 13. Re1 {[%clk 0:01:08.8]} 13... Rad8 {[%clk 0:01:57.7]}
14. Ne2 {[%clk 0:01:04.4]} 14... Ne4 {[%clk 0:01:53.7]} 15. f3 {[%clk
0:01:00.6]} 15... Nf6 {[%clk 0:01:35.6]} 16. Nf4 {[%clk 0:00:50.6]} 16... Rfe8
{[%clk 0:01:24.4]} 17. c3 {[%clk 0:00:41.2]} 17... Bf5 {[%clk 0:00:59]} 18. Rxe7
{[%clk 0:00:25.6]} 18... Bxd3+ {[%clk 0:00:56.5]} 19. Nxd3 {[%clk 0:00:26.3]}
19... Bxe7 {[%clk 0:00:57.2]} 20. Kf2 {[%clk 0:00:25.9]} 20... b6 {[%clk
0:00:54.4]} 21. Rd1 {[%clk 0:00:21]} 21... Rc8 {[%clk 0:00:28.3]} 22. Bh3 {[%clk
0:00:17.3]} 22... Rc7 {[%clk 0:00:27.4]} 23. Be5 {[%clk 0:00:17.3]} 23... Rc4
{[%clk 0:00:24.4]} 24. b3 {[%clk 0:00:14.9]} 24... Rc6 {[%clk 0:00:24]} 25. Bxf6
{[%clk 0:00:13.7]} 25... Rxf6 {[%clk 0:00:24.9]} 26. Nf4 {[%clk 0:00:13.3]}
26... Bc5+ {[%clk 0:00:24.3]} 27. Kf1 {[%clk 0:00:13.5]} 27... g5 {[%clk
0:00:23.5]} 28. Nxd5 {[%clk 0:00:13.1]} 28... Rxf3+ {[%clk 0:00:23.3]} 29. Kg2
{[%clk 0:00:13.3]} 29... Rf2+ {[%clk 0:00:23.3]} 30. Kh1 {[%clk 0:00:14]} 30...
Ree2 {[%clk 0:00:21.9]} 31. Bg4 {[%clk 0:00:13.5]} 31... Rxh2# {[%clk
0:00:16.1]} 0-1

[Event "Early-Titled-Tuesday-Blitz-September-05-2023"]
[Site "Chess.com"]
[Date "2023.09.05"]
[Round "9"]
[White "Hope_6"]
[Black "Casper"]
[Result "1-0"]
[WhiteElo "2721"]
[BlackElo "2452"]
[TimeControl "180+1"]
[EndTime "9:42:09 PDT"]
[Termination "Hope_6 won on time"]

1. d4 {[%clk 0:03:00]} 1... Nf6 {[%clk 0:02:59.9]} 2. c4 {[%clk 0:03:00.8]} 2...
g6 {[%clk 0:03:00.5]} 3. Nc3 {[%clk 0:03:00.7]} 3... Bg7 {[%clk 0:03:01.2]} 4.
e4 {[%clk 0:03:00.7]} 4... O-O {[%clk 0:03:02.1]} 5. f3 {[%clk 0:03:00.7]} 5...
d6 {[%clk 0:03:02.3]} 6. Be3 {[%clk 0:03:00.9]} 6... c5 {[%clk 0:03:02.9]} 7.
Nge2 {[%clk 0:03:01.2]} 7... cxd4 {[%clk 0:03:02.4]} 8. Nxd4 {[%clk 0:03:01.5]}
8... Nc6 {[%clk 0:03:03]} 9. Qd2 {[%clk 0:03:01.7]} 9... Bd7 {[%clk 0:03:00.9]}
10. Be2 {[%clk 0:03:01.4]} 10... Rc8 {[%clk 0:03:01.5]} 11. O-O {[%clk
0:03:00.5]} 11... a6 {[%clk 0:02:59.7]} 12. Rfd1 {[%clk 0:02:59.9]} 12... Qa5
{[%clk 0:02:59]} 13. Nxc6 {[%clk 0:02:35.6]} 13... bxc6 {[%clk 0:02:57.7]} 14.
Nd5 {[%clk 0:02:16.6]} 14... Qxd2 {[%clk 0:02:50.3]} 15. Nxe7+ {[%clk
0:02:16.1]} 15... Kh8 {[%clk 0:02:50]} 16. Rxd2 {[%clk 0:02:15.5]} 16... Rce8
{[%clk 0:02:48.6]} 17. Nxc6 {[%clk 0:02:10.9]} 17... Bxc6 {[%clk 0:02:48.7]} 18.
Rxd6 {[%clk 0:02:11.7]} 18... Rc8 {[%clk 0:02:26.2]} 19. Rad1 {[%clk 0:02:08.9]}
19... Ne8 {[%clk 0:02:08.6]} 20. R6d2 {[%clk 0:02:08.3]} 20... Nc7 {[%clk
0:02:06.3]} 21. b3 {[%clk 0:02:06.2]} 21... Ne6 {[%clk 0:02:00.3]} 22. Kf2
{[%clk 0:02:03.2]} 22... Be5 {[%clk 0:01:52.8]} 23. g3 {[%clk 0:02:01.6]} 23...
f5 {[%clk 0:01:49.3]} 24. exf5 {[%clk 0:01:58.1]} 24... Rxf5 {[%clk 0:01:50.2]}
25. f4 {[%clk 0:01:57]} 25... Rcf8 {[%clk 0:01:29.5]} 26. Kg1 {[%clk 0:01:46.7]}
26... Bc7 {[%clk 0:01:18.9]} 27. Bg4 {[%clk 0:01:45.2]} 27... R5f6 {[%clk
0:01:18.9]} 28. Re2 {[%clk 0:01:27.9]} 28... Kg8 {[%clk 0:00:54.2]} 29. Bf2
{[%clk 0:01:22.7]} 29... Ng7 {[%clk 0:00:43.8]} 30. Re7 {[%clk 0:01:20.6]} 30...
Bd6 {[%clk 0:00:13.4]} 31. Ra7 {[%clk 0:01:14.1]} 31... Bxf4 {[%clk 0:00:10]}
32. Bd4 {[%clk 0:00:51.6]} 32... Bb8 {[%clk 0:00:05.2]} 33. Rxa6 {[%clk
0:00:48.8]} 33... Bf3 {[%clk 0:00:02.8]} 34. Bxf6 {[%clk 0:00:40.7]} 34... Bxg4
{[%clk 0:00:02.7]} 35. Bxg7 {[%clk 0:00:40]} 35... Re8 {[%clk 0:00:01.2]} 36.
Rd4 {[%clk 0:00:35.1]} 1-0

[Event "Early-Titled-Tuesday-Blitz-September-05-2023"]
[Site "Chess.com"]
[Date "2023.09.05"]
[Round "9"]
[White "TregubovP"]
[Black "GMG"]
[Result "1-0"]
[WhiteElo "2664"]
[BlackElo "2776"]
[TimeControl "180+1"]
[EndTime "9:42:14 PDT"]
[Termination "TregubovP won on time"]

1. e4 {[%clk 0:03:00.9]} 1... c5 {[%clk 0:02:57.4]} 2. Nf3 {[%clk 0:03:01.2]}
2... Nc6 {[%clk 0:02:57.4]} 3. Bb5 {[%clk 0:03:01.7]} 3... Nf6 {[%clk
0:02:56.8]} 4. O-O {[%clk 0:02:52.4]} 4... Nxe4 {[%clk 0:02:55.2]} 5. Re1 {[%clk
0:02:52.9]} 5... Nd6 {[%clk 0:02:53.8]} 6. Bf1 {[%clk 0:02:48.5]} 6... e6 {[%clk
0:02:51.9]} 7. d4 {[%clk 0:02:47.4]} 7... Nxd4 {[%clk 0:02:49.1]} 8. Nxd4 {[%clk
0:02:47]} 8... cxd4 {[%clk 0:02:50]} 9. Qxd4 {[%clk 0:02:46.6]} 9... Nf5 {[%clk
0:02:41.8]} 10. Qf4 {[%clk 0:02:25.1]} 10... Be7 {[%clk 0:02:28.2]} 11. Bd3
{[%clk 0:02:25.1]} 11... O-O {[%clk 0:02:19.7]} 12. Bxf5 {[%clk 0:02:24.9]}
12... exf5 {[%clk 0:02:20.6]} 13. Qxf5 {[%clk 0:02:22.6]} 13... d5 {[%clk
0:02:18.7]} 14. Qd3 {[%clk 0:02:22.3]} 14... d4 {[%clk 0:01:55.1]} 15. Nd2
{[%clk 0:02:18.9]} 15... g6 {[%clk 0:01:50.5]} 16. Ne4 {[%clk 0:02:16]} 16...
Bf5 {[%clk 0:01:49.6]} 17. Bh6 {[%clk 0:02:15.8]} 17... Re8 {[%clk 0:01:49.5]}
18. Rad1 {[%clk 0:02:15.6]} 18... Bf8 {[%clk 0:01:27.2]} 19. Bxf8 {[%clk
0:02:09.2]} 19... Kxf8 {[%clk 0:01:28.1]} 20. Qxd4 {[%clk 0:02:05]} 20... Qxd4
{[%clk 0:01:27.7]} 21. Rxd4 {[%clk 0:02:05.3]} 21... Rad8 {[%clk 0:01:17.4]} 22.
Rxd8 {[%clk 0:01:53.7]} 22... Rxd8 {[%clk 0:01:18.3]} 23. f3 {[%clk 0:01:54]}
23... Bxe4 {[%clk 0:01:13.4]} 24. Rxe4 {[%clk 0:01:52.7]} 24... Rd2 {[%clk
0:01:12.7]} 25. Rc4 {[%clk 0:01:48.7]} 25... b5 {[%clk 0:01:07.5]} 26. Rc7
{[%clk 0:01:46]} 26... a6 {[%clk 0:01:06.2]} 27. h4 {[%clk 0:01:45.9]} 27... h6
{[%clk 0:01:03.8]} 28. Kh2 {[%clk 0:01:40]} 28... Kg7 {[%clk 0:00:55.5]} 29. Kg3
{[%clk 0:01:40.3]} 29... h5 {[%clk 0:00:53.5]} 30. b4 {[%clk 0:01:33.9]} 30...
Re2 {[%clk 0:00:49.4]} 31. Rc6 {[%clk 0:01:30.2]} 31... Rd2 {[%clk 0:00:47.7]}
32. a3 {[%clk 0:01:22.1]} 32... Re2 {[%clk 0:00:42.4]} 33. c3 {[%clk 0:01:12.2]}
33... Rc2 {[%clk 0:00:38.7]} 34. f4 {[%clk 0:01:09.5]} 34... Kf8 {[%clk
0:00:25]} 35. Kf3 {[%clk 0:01:09.2]} 35... Ra2 {[%clk 0:00:20.4]} 36. Rxa6
{[%clk 0:01:07.9]} 36... Rc2 {[%clk 0:00:20.5]} 37. Rc6 {[%clk 0:01:05.9]} 37...
Ra2 {[%clk 0:00:20.5]} 38. g3 {[%clk 0:00:53.1]} 38... Rxa3 {[%clk 0:00:19.4]}
39. Rc5 {[%clk 0:00:53.5]} 39... Ke7 {[%clk 0:00:16.9]} 40. Ke4 {[%clk
0:00:53.8]} 40... Ke6 {[%clk 0:00:16.5]} 41. Kd4 {[%clk 0:00:51.4]} 41... Ra2
{[%clk 0:00:16.6]} 42. Rxb5 {[%clk 0:00:48.1]} 42... Rg2 {[%clk 0:00:16.6]} 43.
Re5+ {[%clk 0:00:48]} 43... Kd6 {[%clk 0:00:16.1]} 44. Rg5 {[%clk 0:00:48]}
44... Rd2+ {[%clk 0:00:13.3]} 45. Kc4 {[%clk 0:00:47.2]} 45... Ke6 {[%clk
0:00:13.2]} 46. b5 {[%clk 0:00:45.7]} 1-0

[Event "Early-Titled-Tuesday-Blitz-September-05-2023"]
[Site "Chess.com"]
[Date "2023.09.05"]
[Round "9"]
[White "Bugcrusher"]
[Black "masterofpuppets2"]
[Result "1-0"]
[WhiteElo "2359"]
[BlackElo "2475"]
[TimeControl "180+1"]
[EndTime "9:42:14 PDT"]
[Termination "Bugcrusher won on time"]

1. d4 {[%clk 0:02:56.1]} 1... Nf6 {[%clk 0:02:59.1]} 2. c4 {[%clk 0:02:55.2]}
2... g6 {[%clk 0:02:59.2]} 3. Nc3 {[%clk 0:02:54.8]} 3... Bg7 {[%clk 0:02:59.8]}
4. e4 {[%clk 0:02:54.7]} 4... d6 {[%clk 0:03:00.4]} 5. Nf3 {[%clk 0:02:55.3]}
5... O-O {[%clk 0:03:01]} 6. Be2 {[%clk 0:02:55.9]} 6... Na6 {[%clk 0:03:01.6]}
7. O-O {[%clk 0:02:56.1]} 7... e5 {[%clk 0:03:02.3]} 8. d5 {[%clk 0:02:56.7]}
8... Nc5 {[%clk 0:03:00.5]} 9. Qc2 {[%clk 0:02:57]} 9... a5 {[%clk 0:03:00.1]}
10. Bg5 {[%clk 0:02:57.2]} 10... h6 {[%clk 0:02:57.9]} 11. Be3 {[%clk
0:02:57.2]} 11... Ne8 {[%clk 0:02:52.9]} 12. Nd2 {[%clk 0:02:55.6]} 12... f5
{[%clk 0:02:50.2]} 13. f3 {[%clk 0:02:55.2]} 13... f4 {[%clk 0:02:46.3]} 14. Bf2
{[%clk 0:02:54.8]} 14... g5 {[%clk 0:02:46.8]} 15. b3 {[%clk 0:02:53.9]} 15...
h5 {[%clk 0:02:46.3]} 16. a3 {[%clk 0:02:54]} 16... g4 {[%clk 0:02:44.8]} 17. b4
{[%clk 0:02:54.2]} 17... Nd7 {[%clk 0:02:45.1]} 18. c5 {[%clk 0:02:53.8]} 18...
Qg5 {[%clk 0:02:36.3]} 19. Kh1 {[%clk 0:02:48.5]} 19... Kh8 {[%clk 0:02:32.4]}
20. c6 {[%clk 0:02:45.5]} 20... bxc6 {[%clk 0:02:27.3]} 21. dxc6 {[%clk
0:02:46.4]} 21... Ndf6 {[%clk 0:02:24.8]} 22. b5 {[%clk 0:02:41.4]} 22... Bh6
{[%clk 0:02:17.5]} 23. b6 {[%clk 0:02:25.5]} 23... cxb6 {[%clk 0:02:15.1]} 24.
Nd5 {[%clk 0:02:22.6]} 24... Nxd5 {[%clk 0:01:50.2]} 25. exd5 {[%clk 0:02:22.1]}
25... Nf6 {[%clk 0:01:48.2]} 26. Nc4 {[%clk 0:02:05.2]} 26... Bf5 {[%clk
0:01:33.9]} 27. Bd3 {[%clk 0:02:05.1]} 27... Rg8 {[%clk 0:01:17.9]} 28. Bxf5
{[%clk 0:01:54.7]} 28... gxf3 {[%clk 0:01:17.5]} 29. g3 {[%clk 0:01:54.9]} 29...
fxg3 {[%clk 0:01:06.9]} 30. Bxg3 {[%clk 0:01:52.4]} 30... h4 {[%clk 0:01:06.4]}
31. Nxd6 {[%clk 0:01:43.9]} 31... Rg7 {[%clk 0:00:55.1]} 32. Rg1 {[%clk
0:01:29.2]} 32... hxg3 {[%clk 0:00:49.5]} 33. Rxg3 {[%clk 0:01:29.1]} 33... Qh5
{[%clk 0:00:49.5]} 34. Rag1 {[%clk 0:01:22.6]} 34... Nxd5 {[%clk 0:00:28.5]} 35.
Rxg7 {[%clk 0:01:14.4]} 35... Bxg7 {[%clk 0:00:28.5]} 36. c7 {[%clk 0:01:12]}
36... Ne7 {[%clk 0:00:19.5]} 37. c8=Q+ {[%clk 0:01:02.5]} 37... Nxc8 {[%clk
0:00:19.6]} 38. Bxc8 {[%clk 0:01:02.8]} 38... e4 {[%clk 0:00:09.4]} 39. Qc7
{[%clk 0:00:48.8]} 39... Be5 {[%clk 0:00:01.5]} 40. Qd8+ {[%clk 0:00:42.5]}
40... Kh7 {[%clk 0:00:01.5]} 41. Qg8+ {[%clk 0:00:42.2]} 41... Kh6 {[%clk
0:00:01.7]} 42. Nf7+ {[%clk 0:00:39.6]} 1-0

[Event "Early-Titled-Tuesday-Blitz-September-05-2023"]
[Site "Chess.com"]
[Date "2023.09.05"]
[Round "9"]
[White "TatjanaVasilevich"]
[Black "chess94cu"]
[Result "1-0"]
[WhiteElo "2562"]
[BlackElo "2686"]
[TimeControl "180+1"]
[EndTime "9:42:16 PDT"]
[Termination "TatjanaVasilevich won by resignation"]

1. d4 {[%clk 0:02:50.3]} 1... Nf6 {[%clk 0:02:59.6]} 2. c4 {[%clk 0:02:50.5]}
2... c6 {[%clk 0:02:59.2]} 3. Nc3 {[%clk 0:02:46.1]} 3... d5 {[%clk 0:03:00.1]}
4. Bg5 {[%clk 0:02:44.4]} 4... e6 {[%clk 0:02:56.8]} 5. cxd5 {[%clk 0:02:43.4]}
5... exd5 {[%clk 0:02:55.8]} 6. e3 {[%clk 0:02:43.7]} 6... Bd6 {[%clk
0:02:52.1]} 7. Bd3 {[%clk 0:02:43.7]} 7... Nbd7 {[%clk 0:02:52.5]} 8. Nge2
{[%clk 0:02:43.5]} 8... Nf8 {[%clk 0:02:49.4]} 9. Qc2 {[%clk 0:02:41.2]} 9...
Ne6 {[%clk 0:02:48.7]} 10. Bh4 {[%clk 0:02:41]} 10... Qc7 {[%clk 0:02:40.3]} 11.
f3 {[%clk 0:02:38.3]} 11... h6 {[%clk 0:02:39.4]} 12. Bf2 {[%clk 0:02:31.4]}
12... g6 {[%clk 0:02:32.1]} 13. e4 {[%clk 0:02:26.5]} 13... Bb4 {[%clk
0:02:29.5]} 14. e5 {[%clk 0:02:26.1]} 14... Ng8 {[%clk 0:02:20.8]} 15. a3 {[%clk
0:02:24.7]} 15... Ba5 {[%clk 0:02:17.4]} 16. b4 {[%clk 0:02:24.5]} 16... Bb6
{[%clk 0:02:17.2]} 17. f4 {[%clk 0:02:24.1]} 17... Ne7 {[%clk 0:02:16.7]} 18. g4
{[%clk 0:02:24.1]} 18... Ng7 {[%clk 0:02:12.1]} 19. h3 {[%clk 0:02:20]} 19... h5
{[%clk 0:02:12.2]} 20. Rg1 {[%clk 0:02:19.8]} 20... hxg4 {[%clk 0:02:03.7]} 21.
hxg4 {[%clk 0:02:19.9]} 21... a5 {[%clk 0:02:01.9]} 22. b5 {[%clk 0:02:17.8]}
22... c5 {[%clk 0:01:58.3]} 23. dxc5 {[%clk 0:02:10.2]} 23... Bxc5 {[%clk
0:01:57.3]} 24. Nd4 {[%clk 0:02:07.4]} 24... Rh2 {[%clk 0:01:51.6]} 25. Na4
{[%clk 0:01:59.3]} 25... b6 {[%clk 0:01:42]} 26. Nxc5 {[%clk 0:01:58.3]} 26...
bxc5 {[%clk 0:01:42.9]} 27. Nf3 {[%clk 0:01:58.1]} 27... Rxf2 {[%clk 0:01:37.3]}
28. Qxf2 {[%clk 0:01:54.8]} 28... Ne6 {[%clk 0:01:34.1]} 29. f5 {[%clk
0:01:54.1]} 29... Nf4 {[%clk 0:01:30.1]} 30. Bc2 {[%clk 0:01:54.2]} 30... gxf5
{[%clk 0:01:18.1]} 31. gxf5 {[%clk 0:01:54.1]} 31... Bxf5 {[%clk 0:01:18.8]} 32.
Bxf5 {[%clk 0:01:53.9]} 32... Nxf5 {[%clk 0:01:19.7]} 33. Qd2 {[%clk 0:01:50.7]}
33... Ng6 {[%clk 0:00:40.8]} 34. e6 {[%clk 0:01:48.6]} 34... O-O-O {[%clk
0:00:38.2]} 35. O-O-O {[%clk 0:01:44.5]} 35... d4 {[%clk 0:00:31.7]} 36. exf7
{[%clk 0:01:43.5]} 36... Qxf7 {[%clk 0:00:28.4]} 37. Qxa5 {[%clk 0:01:40.9]}
37... Qc4+ {[%clk 0:00:18.8]} 38. Kb2 {[%clk 0:01:35.1]} 38... Ne3 {[%clk
0:00:19.2]} 39. Rd2 {[%clk 0:01:28.6]} 39... Rd6 {[%clk 0:00:16.3]} 40. Qa8+
{[%clk 0:01:26.2]} 40... Kd7 {[%clk 0:00:16.3]} 41. Qb7+ {[%clk 0:01:25.9]}
41... Kd8 {[%clk 0:00:16.6]} 42. Rc1 {[%clk 0:01:21.3]} 42... Qd5 {[%clk
0:00:12.6]} 43. Qxd5 {[%clk 0:01:17.5]} 43... Rxd5 {[%clk 0:00:13.5]} 44. b6
{[%clk 0:01:14.4]} 44... Kc8 {[%clk 0:00:09.8]} 45. Rxd4 {[%clk 0:01:13.8]}
45... Rf5 {[%clk 0:00:04.3]} 46. Nd2 {[%clk 0:01:07.7]} 46... Kb7 {[%clk
0:00:04.1]} 47. Rd3 {[%clk 0:01:07.7]} 47... Ng4 {[%clk 0:00:03.2]} 48. Nc4
{[%clk 0:01:07.7]} 48... Nf6 {[%clk 0:00:02.4]} 49. Nd6+ {[%clk 0:01:06.6]}
49... Kxb6 {[%clk 0:00:02.4]} 50. Nxf5 {[%clk 0:01:07.2]} 1-0

[Event "Early-Titled-Tuesday-Blitz-September-05-2023"]
[Site "Chess.com"]
[Date "2023.09.05"]
[Round "9"]
[White "WPWPWP-2015"]
[Black "kasun_bole"]
[Result "1-0"]
[WhiteElo "2560"]
[BlackElo "2406"]
[TimeControl "180+1"]
[EndTime "9:42:16 PDT"]
[Termination "WPWPWP-2015 won by resignation"]

1. e4 {[%clk 0:02:13]} 1... c5 {[%clk 0:02:58.1]} 2. Nf3 {[%clk 0:02:12.4]} 2...
Nc6 {[%clk 0:02:58.4]} 3. d4 {[%clk 0:02:12.1]} 3... cxd4 {[%clk 0:02:59.3]} 4.
Nxd4 {[%clk 0:02:12.1]} 4... g6 {[%clk 0:02:59.7]} 5. c4 {[%clk 0:02:11]} 5...
Bg7 {[%clk 0:03:00]} 6. Be3 {[%clk 0:02:10.5]} 6... Nf6 {[%clk 0:03:00.4]} 7.
Nc3 {[%clk 0:02:10.5]} 7... Ng4 {[%clk 0:03:00.8]} 8. Qxg4 {[%clk 0:02:09.7]}
8... Nxd4 {[%clk 0:03:01.2]} 9. Qd1 {[%clk 0:02:09.2]} 9... e5 {[%clk
0:03:01.5]} 10. Bd3 {[%clk 0:02:07.1]} 10... O-O {[%clk 0:03:01.7]} 11. O-O
{[%clk 0:02:06.5]} 11... d6 {[%clk 0:03:02.2]} 12. h3 {[%clk 0:02:05.3]} 12...
Be6 {[%clk 0:03:02]} 13. Nd5 {[%clk 0:02:03.6]} 13... Bxd5 {[%clk 0:03:01.8]}
14. cxd5 {[%clk 0:02:03.3]} 14... Qb6 {[%clk 0:02:59.3]} 15. b3 {[%clk
0:02:02.6]} 15... Rac8 {[%clk 0:02:59.2]} 16. Rc1 {[%clk 0:02:00.7]} 16... Qa5
{[%clk 0:02:50.7]} 17. Qd2 {[%clk 0:01:57.2]} 17... Qxd2 {[%clk 0:02:44.4]} 18.
Bxd2 {[%clk 0:01:56.4]} 18... Rfd8 {[%clk 0:02:34.4]} 19. Bg5 {[%clk 0:01:50.1]}
19... f6 {[%clk 0:02:34.1]} 20. Bd2 {[%clk 0:01:48.8]} 20... Kf7 {[%clk
0:02:34.4]} 21. f3 {[%clk 0:01:29.2]} 21... Ke7 {[%clk 0:02:34.1]} 22. Kf2
{[%clk 0:01:29]} 22... Kd7 {[%clk 0:02:31.4]} 23. g3 {[%clk 0:01:27.4]} 23...
Rxc1 {[%clk 0:02:31.4]} 24. Rxc1 {[%clk 0:01:26.6]} 24... Rc8 {[%clk 0:02:32.1]}
25. Rh1 {[%clk 0:01:26.4]} 25... f5 {[%clk 0:02:25]} 26. h4 {[%clk 0:01:24.1]}
26... fxe4 {[%clk 0:02:20.7]} 27. Bxe4 {[%clk 0:01:20.6]} 27... Rf8 {[%clk
0:01:12.5]} 28. Kg2 {[%clk 0:01:11.7]} 28... h6 {[%clk 0:00:49.8]} 29. Rc1
{[%clk 0:01:08.7]} 29... Nf5 {[%clk 0:00:45.3]} 30. Bd3 {[%clk 0:01:03]} 30...
a6 {[%clk 0:00:43.4]} 31. a4 {[%clk 0:00:55.4]} 31... Rc8 {[%clk 0:00:43.2]} 32.
Rxc8 {[%clk 0:00:53.4]} 32... Kxc8 {[%clk 0:00:44.1]} 33. h5 {[%clk 0:00:53]}
33... Kd7 {[%clk 0:00:35.1]} 34. hxg6 {[%clk 0:00:52.3]} 34... Ne7 {[%clk
0:00:35.3]} 35. Be4 {[%clk 0:00:51.2]} 35... Ke8 {[%clk 0:00:33.8]} 36. Bb4
{[%clk 0:00:49.3]} 36... Nc8 {[%clk 0:00:34.5]} 37. Ba5 {[%clk 0:00:47]} 37...
Ke7 {[%clk 0:00:33.3]} 38. Kh3 {[%clk 0:00:46.7]} 38... Bf6 {[%clk 0:00:32.9]}
39. Kg4 {[%clk 0:00:45.8]} 39... Kf8 {[%clk 0:00:33]} 40. Kf5 {[%clk 0:00:37.7]}
40... Kg7 {[%clk 0:00:25.9]} 41. Ke6 {[%clk 0:00:36.7]} 41... Ne7 {[%clk
0:00:14.8]} 42. Kxd6 {[%clk 0:00:35.9]} 42... Nxg6 {[%clk 0:00:14.6]} 43. Bxg6
{[%clk 0:00:34.4]} 43... Kxg6 {[%clk 0:00:15.5]} 44. Ke6 {[%clk 0:00:33.8]} 1-0

[Event "Early-Titled-Tuesday-Blitz-September-05-2023"]
[Site "Chess.com"]
[Date "2023.09.05"]
[Round "9"]
[White "rasmussvane"]
[Black "VitaliyBernadskiy"]
[Result "0-1"]
[WhiteElo "2944"]
[BlackElo "2840"]
[TimeControl "180+1"]
[EndTime "9:42:19 PDT"]
[Termination "VitaliyBernadskiy won on time"]

1. Nf3 {[%clk 0:03:00.9]} 1... b6 {[%clk 0:02:59]} 2. g3 {[%clk 0:02:59.9]} 2...
Bb7 {[%clk 0:02:59.9]} 3. Bg2 {[%clk 0:03:00.5]} 3... g6 {[%clk 0:02:58.3]} 4.
O-O {[%clk 0:03:00.7]} 4... Bg7 {[%clk 0:02:58.9]} 5. d4 {[%clk 0:03:01.1]} 5...
Nf6 {[%clk 0:02:55.4]} 6. c4 {[%clk 0:03:01.4]} 6... O-O {[%clk 0:02:55.2]} 7.
Re1 {[%clk 0:03:01.9]} 7... Na6 {[%clk 0:02:53.8]} 8. Bf4 {[%clk 0:02:58.7]}
8... e6 {[%clk 0:02:49.1]} 9. Qc2 {[%clk 0:02:55.7]} 9... Nb4 {[%clk 0:02:48.2]}
10. Qb3 {[%clk 0:02:27.8]} 10... a5 {[%clk 0:02:45.9]} 11. a3 {[%clk 0:02:25.4]}
11... Na6 {[%clk 0:02:37.4]} 12. Nc3 {[%clk 0:02:25.5]} 12... d5 {[%clk
0:02:31.9]} 13. Rac1 {[%clk 0:02:16.5]} 13... c5 {[%clk 0:02:30.4]} 14. Red1
{[%clk 0:02:16.7]} 14... Rc8 {[%clk 0:02:03]} 15. cxd5 {[%clk 0:01:48.8]} 15...
Nxd5 {[%clk 0:02:01.5]} 16. Nxd5 {[%clk 0:01:49]} 16... exd5 {[%clk 0:01:52.2]}
17. Bh3 {[%clk 0:01:25.7]} 17... Ra8 {[%clk 0:01:43.1]} 18. dxc5 {[%clk
0:01:24.9]} 18... a4 {[%clk 0:01:17.8]} 19. Qxa4 {[%clk 0:00:52]} 19... Nxc5
{[%clk 0:01:17.5]} 20. Qb4 {[%clk 0:00:49.9]} 20... Ra4 {[%clk 0:01:14.8]} 21.
Qb5 {[%clk 0:00:17.5]} 21... Ba6 {[%clk 0:01:11.8]} 22. Rxc5 {[%clk 0:00:15]}
22... Bxb5 {[%clk 0:01:07.8]} 23. Rxb5 {[%clk 0:00:15.9]} 23... Qe8 {[%clk
0:01:07.7]} 24. Rbxd5 {[%clk 0:00:12.8]} 24... Qxe2 {[%clk 0:01:07.5]} 25. Ne5
{[%clk 0:00:06.5]} 25... Qxb2 {[%clk 0:01:00.3]} 26. Nd7 {[%clk 0:00:05.3]}
26... Re8 {[%clk 0:00:59.9]} 27. Be3 {[%clk 0:00:03.1]} 27... b5 {[%clk
0:00:46.9]} 28. Nc5 {[%clk 0:00:02]} 28... Rxa3 {[%clk 0:00:46.6]} 29. Rd8
{[%clk 0:00:02.5]} 29... Ra8 {[%clk 0:00:42.7]} 30. R8d7 {[%clk 0:00:02.7]}
30... Qc3 {[%clk 0:00:39.2]} 31. Bg2 {[%clk 0:00:02.8]} 31... Rac8 {[%clk
0:00:36.8]} 32. Ne4 {[%clk 0:00:02.5]} 32... Qc2 {[%clk 0:00:33.1]} 33. Ng5
{[%clk 0:00:03]} 33... b4 {[%clk 0:00:17.6]} 34. h4 {[%clk 0:00:02]} 34... b3
{[%clk 0:00:16.3]} 35. R1d2 {[%clk 0:00:01.1]} 35... b2 {[%clk 0:00:15.6]} 0-1